bitfinex/quotes_BTCUSD_20251212
["timestamp","ask_amount","ask_price","bid_price","bid_amount"]
[1765558946539,0.01548,90198.0,90196.0,0.22173924]
[1765558946768,0.01108733,90193.0,90189.0,0.23284285]
[1765558946983,0.01108745,90192.0,90188.0,0.01108794]
[1765558947209,0.01548,90189.0,90186.0,0.01108819]
[1765558947416,0.00161,90189.0,90187.0,0.23284952]
[1765558947832,0.01548,90188.0,90187.0,0.23284952]
[1765558948103,0.03918,90188.0,90187.0,0.23284952]
[1765558948934,0.03918,90188.0,90181.0,0.01108881]
[1765558949150,0.01108942,90176.0,90171.0,0.01109004]
[1765558949360,0.01108942,90176.0,90160.0,0.02426242]
[1765558949361,0.01109028,90169.0,90163.0,0.22182006]
[1765558949570,0.23386994,90180.0,90176.0,0.01108942]
[1765558949787,0.23386994,90180.0,90168.0,0.0110904]
[1765558949788,0.01108967,90174.0,90168.0,0.0110904]
[1765558949993,0.03478905,90179.0,90174.0,0.23288189]
[1765558950192,0.03478905,90179.0,90175.0,0.01108954]
[1765558950415,0.0237,90178.0,90177.0,0.0110893]
[1765558950598,0.01548,90176.0,90171.0,0.01109004]
[1765558950829,0.0237,90178.0,90175.0,0.01108954]
[1765558951022,0.0237,90177.0,90175.0,0.01108954]
[1765558951298,0.01548,90176.0,90175.0,0.01108954]
[1765558951937,0.03918,90176.0,90175.0,0.01108954]
[1765558952168,0.03918,90176.0,90167.0,0.22181011]
[1765558952389,0.03918,90176.0,90164.0,0.0110909]
[1765558952390,0.00099999,90170.0,90164.0,0.0110909]
[1765558952599,0.01076,90168.0,90167.0,0.01109053]
[1765558953008,0.04994,90168.0,90166.0,0.01109065]
[1765558953222,0.01548,90167.0,90166.0,0.23290356]
[1765558953437,0.03918,90167.0,90166.0,0.23290356]
[1765558955350,0.01076,90168.0,90166.0,0.23290356]
[1765558955559,0.0237,90177.0,90176.0,0.2217885]
[1765558955770,0.01203,90182.0,90181.0,0.2217762]
[1765558956231,0.05121,90182.0,90181.0,0.2217762]
[1765558956839,0.02751,90182.0,90181.0,0.2217762]
[1765558956984,0.02751,90182.0,90181.0,0.29595653]
[1765558957393,0.01203,90182.0,90181.0,0.29595653]
[1765558957592,0.29231,90189.0,90186.0,0.01108819]
[1765558957593,0.00161,90189.0,90186.0,0.01108819]
[1765558957798,0.01203,90191.0,90190.0,0.22175407]
[1765558958404,0.01203,90191.0,90188.0,0.23284693]
[1765558958405,0.05121,90191.0,90188.0,0.23284693]
[1765558958600,0.05121,90191.0,90186.0,0.01108819]
[1765558958601,0.01548,90189.0,90186.0,0.23284985]
[1765558958927,0.01548,90187.0,90186.0,0.23284985]
[1765558959297,0.03918,90187.0,90184.0,0.01108844]
[1765558959476,0.03918,90187.0,90176.0,0.01108942]
[1765558959477,0.22177374,90182.0,90176.0,0.01108942]
[1765558959686,0.00099999,90180.0,90174.0,0.22179342]
[1765558959912,0.0237,90179.0,90176.0,0.2328774]
[1765558960284,0.2217885,90176.0,90171.0,0.01109004]
[1765558960509,0.01548,90172.0,90169.0,0.01109028]
[1765558960705,0.01548,90170.0,90169.0,0.01109028]
[1765558961141,0.03918,90170.0,90169.0,0.01109028]
[1765558962146,0.03918,90170.0,90169.0,0.01209028]
[1765558962593,0.0237,90176.0,90175.0,0.23288005]
[1765558963115,0.03918,90176.0,90175.0,0.23288005]
[1765558963320,0.00161,90179.0,90178.0,0.22178358]
[1765558964801,0.01709,90179.0,90178.0,0.22178358]
[1765558965023,0.04079,90179.0,90178.0,0.22178358]
[1765558965459,0.01108967,90174.0,90170.0,0.01109016]
[1765558965660,0.01548,90170.0,90167.0,0.23289912]
[1765558965891,0.0237,90173.0,90172.0,0.22179834]
[1765558966132,0.02531,90173.0,90172.0,0.23288825]
[1765558966343,0.04079,90173.0,90172.0,0.23288825]
[1765558967427,0.04079,90173.0,90170.0,0.01109016]
[1765558967628,0.00161,90173.0,90170.0,0.01109016]
[1765558967805,0.01548,90171.0,90170.0,0.01109016]
[1765558968233,0.03918,90171.0,90167.0,0.01109053]
[1765558968435,0.04312193,90165.0,90164.0,0.00011584]
[1765558968669,0.05860193,90165.0,90164.0,0.00011584]
[1765558968876,0.08230193,90165.0,90164.0,0.00011584]
[1765558969291,0.26099556,90165.0,90164.0,0.00011584]
[1765558969517,0.03918,90165.0,90164.0,0.00011584]
[1765558970793,0.03918,90165.0,90164.0,0.04892847]
[1765558970994,0.03918,90165.0,90164.0,0.00011584]
[1765558971469,0.04018,90165.0,90164.0,0.00011584]
[1765558973685,0.001,90165.0,90164.0,0.00472256]
[1765558973846,0.001,90165.0,90164.0,0.00011584]
[1765558974874,0.00099999,90170.0,90167.0,0.01109053]
[1765558975077,0.00099999,90170.0,90168.0,0.22180818]
[1765558975230,0.01997801,90173.0,90172.0,0.22179834]
[1765558975430,0.01997801,90173.0,90170.0,0.01109016]
[1765558975632,0.01591,90171.0,90170.0,0.01109016]
[1765558976117,0.01109016,90170.0,90161.0,0.23291648]
[1765558976249,0.01591,90165.0,90164.0,0.00011584]
[1765558976659,0.04024,90165.0,90164.0,0.00011584]
[1765558977483,0.01836801,90167.0,90164.0,0.23302476]
[1765558977688,0.02433,90176.0,90170.0,0.23289342]
[1765558977851,0.01836801,90175.0,90170.0,0.23289342]
[1765558978253,0.01836801,90175.0,90172.0,0.22179834]
[1765558978835,0.01752,90173.0,90172.0,0.22179834]
[1765558980286,0.22181556,90165.0,90164.0,0.00011584]
[1765558980496,1.52842556,90165.0,90164.0,0.00011584]
[1765558980893,1.52842556,90165.0,90143.0,0.01109348]
[1765558980894,0.01109299,90147.0,90143.0,0.01109348]
[1765558981069,0.01109299,90147.0,90132.0,0.05931]
[1765558981070,0.2329857,90135.0,90132.0,0.05931]
[1765558981241,0.2329857,90135.0,90126.0,0.01109557]
[1765558981242,0.0270436,90142.0,90137.0,0.01109422]
[1765558981448,0.02346,90143.0,90141.0,0.23296778]
[1765558981651,0.03422,90144.0,90141.0,0.01109373]
[1765558981850,0.01595,90142.0,90140.0,0.01109385]
[1765558982032,0.03941,90141.0,90140.0,0.01109385]
[1765558982235,0.01199,90152.0,90146.0,0.22186231]
[1765558982433,0.02346,90159.0,90146.0,0.22186231]
[1765558982633,0.00099999,90160.0,90146.0,0.23837231]
[1765558983264,0.00099999,90160.0,90146.0,0.26305231]
[1765558983421,0.00099999,90160.0,90146.0,0.22186231]
[1765558983824,0.00111591,90147.0,90146.0,0.23837231]
[1765558984252,0.00011591,90147.0,90146.0,0.22186231]
[1765558984540,0.00011591,90147.0,90146.0,0.26605031]
[1765558984750,0.00011591,90147.0,90146.0,0.30724031]
[1765558985001,0.00011591,90147.0,90146.0,0.30824031]
[1765558985670,0.00011591,90147.0,90146.0,0.22386231]
[1765558986006,0.00011591,90147.0,90146.0,0.26505231]
[1765558986164,0.00011591,90147.0,90146.0,0.30824031]
[1765558986372,0.00011591,90147.0,90146.0,0.30724031]
[1765558986805,0.00011591,90147.0,90146.0,0.3572587]
[1765558987001,0.01836801,90183.0,90180.0,0.01108893]
[1765558987157,0.001726,90183.0,90181.0,0.01108881]
[1765558987380,0.02346,90182.0,90181.0,0.01108881]
[1765558987598,0.000116,90183.0,90181.0,0.23286466]
[1765558987808,0.03941,90182.0,90181.0,0.01108881]
[1765558988005,0.04102,90182.0,90181.0,0.23286501]
[1765558988202,0.00161,90182.0,90181.0,0.23286501]
[1765558988435,0.000116,90183.0,90181.0,0.23286501]
[1765558989092,0.03941,90182.0,90179.0,0.23287017]
[1765558989268,0.02507,90182.0,90180.0,0.22177866]
[1765558989440,0.02346,90181.0,90180.0,0.22177866]
[1765558989640,0.03941,90181.0,90180.0,0.22177866]
[1765558990642,0.00261,90182.0,90180.0,0.22177866]
[1765558991045,0.00161,90182.0,90180.0,0.22177866]
[1765558991283,0.001,90181.0,90180.0,0.22177866]
[1765558991861,0.001,90181.0,90180.0,0.37806658]
[1765558992478,0.001,90181.0,90180.0,0.35338658]
[1765558992675,0.000116,90183.0,90182.0,0.043188]
[1765558992896,0.000116,90183.0,90182.0,0.059698]
[1765558993211,0.000116,90183.0,90182.0,0.084378]
[1765558993569,0.000116,90183.0,90182.0,0.13439639]
[1765558993771,0.000116,90183.0,90182.0,0.13539639]
[1765558994023,0.000116,90183.0,90182.0,0.13639639]
[1765558994212,0.000116,90183.0,90182.0,0.06852839]
[1765558994474,0.000116,90183.0,90182.0,0.001]
[1765558995201,0.000116,90183.0,90182.0,0.12228312]
[1765558995515,0.000116,90183.0,90182.0,0.12128312]
[1765558995720,0.000116,90183.0,90182.0,0.08009512]
[1765558996380,0.000116,90183.0,90182.0,0.07809512]
[1765558996585,0.000116,90183.0,90182.0,0.07909512]
[1765558997242,0.000116,90183.0,90182.0,0.21449151]
[1765558997398,0.000116,90183.0,90182.0,0.17130351]
[1765558997742,0.000116,90183.0,90182.0,0.21449151]
[1765558998673,0.000116,90183.0,90182.0,0.14662351]
[1765558999121,0.000116,90183.0,90178.0,0.23286617]
[1765558999122,0.26290728,90183.0,90168.0,0.51250778]
[1765558999322,0.30178917,90178.0,90170.0,0.01109016]
[1765558999528,0.30178917,90178.0,90169.0,0.01109028]
[1765558999529,0.01108979,90173.0,90169.0,0.01109028]
[1765558999754,0.01109016,90170.0,90166.0,0.01109065]
[1765558999968,0.01109028,90169.0,90166.0,0.01109065]
[1765559000187,0.00161,90169.0,90165.0,0.23290589]
[1765559000401,0.00161,90169.0,90164.0,0.0110909]
[1765559000625,0.01109053,90167.0,90162.0,0.01109114]
[1765559000843,0.2329014,90167.0,90162.0,0.01109114]
[1765559001089,0.00161,90169.0,90166.0,0.23290173]
[1765559001747,0.30178782,90189.0,90182.0,0.22177374]
[1765559001958,0.001726,90183.0,90182.0,0.22177374]
[1765559002608,0.000116,90183.0,90182.0,0.26164374]
[1765559002822,0.000116,90183.0,90182.0,0.30483174]
[1765559003032,0.001116,90183.0,90182.0,0.30483174]
[1765559003453,0.000116,90183.0,90182.0,0.26164374]
[1765559003700,0.000116,90183.0,90182.0,0.30483174]
[1765559003910,0.000116,90183.0,90182.0,0.30583174]
[1765559004118,0.000116,90183.0,90182.0,0.30683174]
[1765559004336,0.000116,90183.0,90182.0,0.33554615]
[1765559004544,0.000116,90183.0,90182.0,0.30583174]
[1765559005227,0.000116,90183.0,90182.0,0.30483174]
[1765559005451,0.000116,90183.0,90182.0,0.30683174]
[1765559005659,0.000116,90183.0,90182.0,0.30883174]
[1765559006017,0.000116,90183.0,90182.0,0.30683174]
[1765559006229,0.000116,90183.0,90182.0,0.60053174]
[1765559006432,0.000116,90183.0,90182.0,0.59853174]
[1765559006632,0.000116,90183.0,90182.0,0.68557249]
[1765559006833,0.000116,90183.0,90182.0,0.69057249]
[1765559007369,0.000116,90183.0,90182.0,0.68757249]
[1765559007620,0.000116,90183.0,90182.0,0.69057249]
[1765559008208,0.000116,90183.0,90182.0,0.68857249]
[1765559008450,0.000116,90183.0,90182.0,0.74159088]
[1765559008641,0.00291759,90200.0,90199.0,0.26491994]
[1765559008781,0.00291759,90200.0,90199.0,0.33530035]
[1765559009730,0.73129291,90240.0,90229.0,0.22165822]
[1765559009731,0.0002,90240.0,90229.0,0.22165822]
[1765559009905,0.0003072,90230.0,90229.0,0.23750822]
[1765559010113,0.0003072,90230.0,90229.0,0.22165822]
[1765559010292,0.0003072,90230.0,90228.0,0.22166068]
[1765559010680,0.0003072,90230.0,90229.0,0.03987]
[1765559010880,0.0003072,90230.0,90229.0,0.083058]
[1765559011880,0.0013072,90230.0,90229.0,0.083058]
[1765559012253,0.0003072,90230.0,90229.0,0.083058]
[1765559012420,0.0003072,90230.0,90229.0,0.084058]
[1765559012625,0.0003072,90230.0,90229.0,0.16342629]
[1765559013056,0.0003072,90230.0,90229.0,0.16142629]
[1765559013505,0.0003072,90230.0,90229.0,0.16242629]
[1765559014502,0.0003072,90230.0,90229.0,0.21244468]
[1765559015135,0.0003072,90230.0,90229.0,0.21144468]
[1765559015368,0.0002,90240.0,90239.0,0.55552166]
[1765559015536,0.00058643,90240.0,90239.0,0.60068412]
[1765559015748,0.00058643,90240.0,90239.0,0.62470412]
[1765559015902,0.00178115,90240.0,90239.0,0.62470412]
[1765559016501,0.00178115,90240.0,90239.0,0.62670412]
[1765559017832,0.00178115,90240.0,90239.0,0.67872251]
[1765559018039,1.15e-06,90240.0,90239.0,0.67872251]
[1765559018250,0.0110764,90282.0,90279.0,0.01107677]
[1765559018423,0.0110764,90282.0,90275.0,0.23262163]
[1765559018424,0.2907,90279.0,90276.0,0.01107714]
[1765559018623,0.01032964,90278.0,90276.0,0.01107714]
[1765559018872,0.23347771,90278.0,90273.0,0.0110775]
[1765559019127,0.01032964,90277.0,90274.0,0.01107738]
[1765559019366,0.0110775,90273.0,90269.0,0.011078]
[1765559019579,0.0110775,90273.0,90272.0,0.01107763]
[1765559019580,0.00161,90273.0,90272.0,0.01107763]
[1765559021048,0.01107836,90266.0,90238.0,0.01246]
[1765559021261,0.01207909,90260.0,90247.0,0.01246]
[1765559021469,0.01108008,90252.0,90245.0,0.00682343]
[1765559021673,0.01108082,90246.0,90241.0,0.23270986]
[1765559021877,0.00161,90246.0,90243.0,0.23270502]
[1765559022076,0.00161,90246.0,90243.0,0.01108119]
[1765559022275,0.00161,90246.0,90245.0,0.22161892]
[1765559023386,0.00161,90246.0,90245.0,0.22261892]
[1765559023617,0.01032195,90260.0,90257.0,0.01107947]
[1765559023767,0.01032195,90260.0,90257.0,0.01146587]
[1765559023970,0.0214008,90262.0,90258.0,0.01107935]
[1765559024202,0.22158209,90260.0,90257.0,0.0003864]
[1765559024409,0.02868972,90259.0,90257.0,0.0003864]
[1765559024608,0.221587,90258.0,90257.0,0.0003864]
[1765559024904,0.23190877,90258.0,90257.0,0.0003864]
[1765559025722,0.01032177,90258.0,90257.0,0.0003864]
[1765559025899,0.0115021,90259.0,90258.0,0.221587]
[1765559026099,0.01107873,90263.0,90260.0,0.0110791]
[1765559026278,0.01032213,90264.0,90262.0,0.22157718]
[1765559026500,0.2907,90265.0,90262.0,0.23265582]
[1765559026678,0.2907,90265.0,90264.0,0.22157227]
[1765559026871,0.2907,90265.0,90262.0,0.23265508]
[1765559027066,0.01836801,90264.0,90261.0,0.01107898]
[1765559027267,0.01997801,90264.0,90262.0,0.22157718]
[1765559027618,0.00161,90264.0,90262.0,0.22157718]
[1765559027761,0.00161,90264.0,90263.0,0.07094504]
[1765559027964,0.00161,90264.0,90262.0,0.22157718]
[1765559028617,0.00261,90264.0,90262.0,0.22157718]
[1765559029046,0.00261,90264.0,90257.0,0.01146587]
[1765559029198,0.0110791,90260.0,90257.0,0.0003864]
[1765559029506,0.00056724,90259.0,90257.0,0.0003864]
[1765559029727,0.00161,90259.0,90257.0,0.22197516]
[1765559031840,0.00261,90259.0,90257.0,0.22197516]
[1765559034341,0.00261,90259.0,90257.0,0.22297516]
[1765559034982,0.00053739,90258.0,90257.0,0.0013864]
[1765559035185,0.29123739,90258.0,90257.0,0.0013864]
[1765559035756,1.39694804,90258.0,90257.0,0.0013864]
[1765559036159,1.29123739,90258.0,90257.0,0.0013864]
[1765559037166,1.63187771,90258.0,90257.0,0.0013864]
[1765559037376,1.38437771,90258.0,90257.0,0.0013864]
[1765559037583,1.39471591,90258.0,90257.0,0.0013864]
[1765559038825,0.60544451,90251.0,90250.0,0.01]
[1765559039073,0.60544451,90251.0,90250.0,0.01038643]
[1765559039232,0.60544451,90251.0,90218.0,0.03959557]
[1765559039233,0.0110834,90225.0,90218.0,0.03959557]
[1765559039573,0.22168033,90220.0,90218.0,0.00038754]
[1765559039783,0.04312193,90219.0,90218.0,0.00038754]
[1765559040134,0.30178389,90221.0,90218.0,0.00038754]
[1765559040339,0.52346198,90221.0,90218.0,0.03005829]
[1765559040538,0.2907,90221.0,90218.0,0.00038754]
[1765559040751,0.2907,90221.0,90218.0,0.0114718]
[1765559040977,0.04312193,90219.0,90218.0,0.00038754]
[1765559041373,0.52346221,90221.0,90218.0,0.00038754]
[1765559041572,0.04312193,90219.0,90218.0,0.00038754]
[1765559042411,0.04712193,90219.0,90218.0,0.00038754]
[1765559042611,0.004,90219.0,90218.0,0.00038754]
[1765559043396,0.00561,90219.0,90218.0,0.00038754]
[1765559044420,0.00561,90219.0,90218.0,0.00138754]
[1765559044622,0.00361,90219.0,90218.0,0.22307279]
[1765559044824,0.00361,90219.0,90218.0,0.25274354]
[1765559045409,0.00161,90219.0,90218.0,0.03105829]
[1765559045608,0.29231,90219.0,90218.0,0.00138754]
[1765559045862,0.29231,90219.0,90218.0,0.25274354]
[1765559045863,0.00161,90219.0,90218.0,0.25274354]
[1765559046063,0.2907,90224.0,90220.0,0.22167817]
[1765559046267,0.01108291,90229.0,90224.0,0.01108352]
[1765559046469,0.01108303,90228.0,90225.0,0.0110834]
[1765559046683,0.2907,90231.0,90228.0,0.01108303]
[1765559046825,0.2907,90231.0,90229.0,0.22165665]
[1765559047645,0.00161,90234.0,90233.0,0.22164839]
[1765559048227,0.00023887,90248.0,90246.0,0.22161406]
[1765559048401,0.01108168,90239.0,90234.0,0.01108229]
[1765559048607,0.0110818,90238.0,90233.0,0.01108241]
[1765559048895,0.01108205,90236.0,90232.0,0.01108254]
[1765559049097,0.01108217,90235.0,90232.0,0.01108254]
[1765559049371,0.01108229,90234.0,90232.0,0.00038754]
[1765559049564,0.01836801,90233.0,90232.0,0.00038754]
[1765559049766,0.0110818,90238.0,90232.0,0.23311985]
[1765559049933,0.0110818,90238.0,90232.0,0.01147008]
[1765559049934,0.01836801,90237.0,90232.0,0.01147008]
[1765559050278,0.01208155,90240.0,90236.0,0.22164066]
[1765559050480,0.30178131,90242.0,90238.0,0.23271769]
[1765559050684,0.01108082,90246.0,90240.0,0.2216312]
[1765559051089,0.2907,90249.0,90245.0,0.01108094]
[1765559051292,0.2907,90249.0,90246.0,0.22161647]
[1765559051567,0.3017807,90247.0,90244.0,0.01108106]
[1765559051770,0.2907,90247.0,90244.0,0.01108106]
[1765559051921,0.2907,90247.0,90245.0,0.22161892]
[1765559052471,0.001,90246.0,90245.0,0.22161892]
[1765559053457,0.001,90246.0,90245.0,0.26128892]
[1765559053662,0.001,90247.0,90245.0,0.26128892]
[1765559053874,0.001,90247.0,90246.0,0.082858]
[1765559054083,0.00023887,90248.0,90247.0,0.26480201]
[1765559054308,0.00023887,90248.0,90247.0,0.30447201]
[1765559054516,0.00023887,90248.0,90247.0,0.22161401]
[1765559054730,0.00023887,90248.0,90245.0,0.23269986]
[1765559054987,0.01108168,90239.0,90234.0,0.01108229]
[1765559055188,0.22164639,90234.0,90229.0,0.01108291]
[1765559055409,0.0110818,90238.0,90235.0,0.01108217]
[1765559055621,0.01108192,90237.0,90232.0,0.01147008]
[1765559055823,0.00161,90238.0,90234.0,0.01108229]
[1765559056025,0.00161,90238.0,90235.0,0.23272565]
[1765559056629,0.00161,90238.0,90232.0,0.00038754]
[1765559056630,0.01108217,90235.0,90232.0,0.00038754]
[1765559056769,0.22164839,90233.0,90232.0,0.00038754]
[1765559057525,0.22325839,90233.0,90232.0,0.00038754]
[1765559057873,0.55708032,90233.0,90232.0,0.00038754]
[1765559058500,0.51395839,90233.0,90232.0,0.00038754]
[1765559059308,0.51495839,90233.0,90232.0,0.00038754]
[1765559060212,0.62322589,90233.0,90232.0,0.00038754]
[1765559060431,0.55808032,90233.0,90232.0,0.00038754]
[1765559061284,0.55708032,90233.0,90232.0,0.00038754]
[1765559061606,0.51695839,90233.0,90232.0,0.00038754]
[1765559062892,0.29531,90233.0,90232.0,0.00038754]
[1765559063982,0.29431,90233.0,90232.0,0.00038754]
[1765559064169,0.33643193,90233.0,90232.0,0.00038754]
[1765559064593,0.33743193,90233.0,90232.0,0.00038754]
[1765559064836,0.33843193,90233.0,90232.0,0.00038754]
[1765559065371,0.33543193,90233.0,90232.0,0.00038754]
[1765559065594,0.33743193,90233.0,90232.0,0.00038754]
[1765559066557,0.33843193,90233.0,90232.0,0.00038754]
[1765559067732,0.00461,90233.0,90232.0,0.00038754]
[1765559067936,0.31367801,90233.0,90232.0,0.00038754]
[1765559068162,0.29531,90233.0,90232.0,0.00038754]
[1765559068592,0.29331,90233.0,90232.0,0.00038754]
[1765559068996,0.29431,90233.0,90232.0,0.00038754]
[1765559069422,0.29331,90233.0,90232.0,0.00038754]
[1765559070048,0.29231,90233.0,90232.0,0.00038754]
[1765559070442,0.29331,90233.0,90232.0,0.00038754]
[1765559070647,0.29331,90233.0,90232.0,0.22203839]
[1765559071016,0.00261,90233.0,90232.0,0.22203839]
[1765559071187,0.00161,90233.0,90232.0,0.22203839]
[1765559071542,0.00261,90233.0,90232.0,0.22203839]
[1765559071753,0.00361,90233.0,90232.0,0.22203839]
[1765559071979,0.00361,90233.0,90232.0,0.00038754]
[1765559072192,0.00261,90233.0,90232.0,0.00038754]
[1765559072399,0.22425839,90233.0,90232.0,0.00038754]
[1765559072905,0.00161,90233.0,90232.0,0.00038754]
[1765559074138,0.01997801,90233.0,90232.0,0.00038754]
[1765559075384,0.02097801,90233.0,90232.0,0.00038754]
[1765559075792,0.01997801,90233.0,90232.0,0.00038754]
[1765559076119,0.02097801,90233.0,90232.0,0.00038754]
[1765559076316,0.02197801,90233.0,90232.0,0.00038754]
[1765559076523,0.41165953,90233.0,90232.0,0.00038754]
[1765559076724,0.33743193,90233.0,90232.0,0.00038754]
[1765559077291,0.29431,90233.0,90232.0,0.00038754]
[1765559077441,0.33643193,90233.0,90232.0,0.00038754]
[1765559078622,0.33743193,90233.0,90232.0,0.00038754]
[1765559079675,0.33643193,90233.0,90232.0,0.00038754]
[1765559080069,0.33743193,90233.0,90232.0,0.00038754]
[1765559080327,0.69543955,90233.0,90232.0,0.00038754]
[1765559080527,0.58393193,90233.0,90232.0,0.00038754]
[1765559080765,0.59082839,90233.0,90232.0,1e-08]
[1765559080977,0.01108672,90198.0,90195.0,0.02967075]
[1765559081182,0.51244424,90194.0,90193.0,0.02967075]
[1765559081384,0.51244424,90194.0,90187.0,0.02967075]
[1765559081385,0.22175899,90188.0,90187.0,0.02967075]
[1765559081588,0.22177866,90180.0,90179.0,0.05951998]
[1765559081719,0.22176149,90187.0,90179.0,0.05951998]
[1765559081720,0.00099999,90190.0,90189.0,0.22175653]
[1765559081925,0.00099999,90190.0,90186.0,0.01108819]
[1765559082111,0.01208769,90190.0,90186.0,0.01108819]
[1765559082312,0.0110877,90190.0,90187.0,0.01108807]
[1765559082513,0.23284182,90190.0,90187.0,0.01108807]
[1765559082808,0.01108794,90188.0,90184.0,0.01108844]
[1765559083014,0.0110877,90190.0,90186.0,0.01108819]
[1765559083242,0.30178758,90191.0,90187.0,0.01108807]
[1765559083448,0.0110877,90190.0,90187.0,0.01108807]
[1765559083647,0.2907,90193.0,90192.0,0.22174915]
[1765559083984,0.01108672,90198.0,90192.0,0.22174915]
[1765559084138,0.2907,90197.0,90194.0,0.01108721]
[1765559084489,0.2907,90197.0,90195.0,0.2217395]
[1765559085073,0.2907,90197.0,90194.0,0.23282902]
[1765559085243,0.2217442,90195.0,90191.0,0.01108758]
[1765559085443,0.2907,90194.0,90191.0,0.01108758]
[1765559085676,0.29231,90194.0,90187.0,0.05177711]
[1765559086023,0.01108733,90193.0,90190.0,0.0110877]
[1765559086220,0.30339721,90194.0,90191.0,0.01108758]
[1765559086221,0.29231,90194.0,90191.0,0.01108758]
[1765559086433,0.01108733,90193.0,90190.0,0.0110877]
[1765559086637,0.01108794,90188.0,90185.0,0.03968904]
[1765559086862,0.01108758,90191.0,90187.0,0.01108807]
[1765559087061,0.0110877,90190.0,90187.0,0.01108807]
[1765559087433,0.01108782,90189.0,90186.0,0.01108819]
[1765559087615,0.01108758,90191.0,90187.0,0.01108807]
[1765559087815,0.01108831,90185.0,90182.0,0.03968904]
[1765559088039,0.01108819,90186.0,90182.0,0.27255128]
[1765559088251,0.22177866,90180.0,90179.0,0.04007661]
[1765559088425,0.51247866,90180.0,90179.0,0.00038757]
[1765559088623,0.51408866,90180.0,90179.0,0.00038757]
[1765559089512,0.51408866,90180.0,90179.0,0.00138757]
[1765559089715,0.55721059,90180.0,90179.0,0.00038757]
[1765559090801,0.55821059,90180.0,90179.0,0.00038757]
[1765559091389,0.6196988,90180.0,90179.0,0.00038757]
[1765559091596,0.71283912,90180.0,90179.0,0.00038757]
[1765559092275,0.66971719,90180.0,90179.0,0.00038757]
[1765559092512,0.71283912,90180.0,90179.0,0.00038757]
[1765559092730,0.71283912,90180.0,90145.0,0.01109323]
[1765559092731,0.22185,90151.0,90148.0,0.05951998]
[1765559092960,0.01109237,90152.0,90148.0,0.00038824]
[1765559093166,0.011092,90155.0,90151.0,0.0110925]
[1765559093444,0.22184262,90154.0,90148.0,0.00038824]
[1765559093656,0.301792,90155.0,90151.0,0.0110925]
[1765559094087,0.01109213,90154.0,90148.0,0.23333609]
[1765559094756,0.51255492,90149.0,90148.0,0.00038824]
[1765559095019,0.2907,90149.0,90148.0,0.00138824]
[1765559095251,0.2907,90149.0,90148.0,0.00038824]
[1765559096787,0.01109151,90159.0,90154.0,0.01109213]
[1765559096993,0.2907,90159.0,90156.0,0.01109188]
[1765559097194,0.2907,90159.0,90157.0,0.22183524]
[1765559097603,0.01109053,90167.0,90162.0,0.22182153]
[1765559097741,0.3017904,90168.0,90164.0,0.0110909]
[1765559097940,0.0110904,90168.0,90164.0,0.0110909]
[1765559098141,0.01108942,90176.0,90172.0,0.01108991]
[1765559098459,0.00161,90180.0,90148.0,0.00038824]
[1765559098460,0.0110909,90164.0,90148.0,0.00038824]
[1765559098675,0.01109065,90166.0,90158.0,0.01109163]
[1765559098864,0.01109077,90165.0,90161.0,0.01109127]
[1765559099065,0.2907,90166.0,90163.0,0.01109102]
[1765559099259,0.2907,90166.0,90164.0,0.22181589]
[1765559099810,0.2907,90166.0,90163.0,0.01109102]
[1765559099811,0.001,90175.0,90172.0,0.01108991]
[1765559100034,0.01108905,90179.0,90173.0,0.01108979]
[1765559100237,0.01108905,90179.0,90172.0,0.01108991]
[1765559100238,0.01108942,90176.0,90172.0,0.00161287]
[1765559100408,0.02945755,90175.0,90172.0,0.01108991]
[1765559100622,0.01108954,90175.0,90171.0,0.01109004]
[1765559100756,0.01108917,90178.0,90171.0,0.2218008]
[1765559100954,0.01109077,90165.0,90159.0,0.01109151]
[1765559101211,0.01836801,90168.0,90165.0,0.01109077]
[1765559101373,0.01108942,90176.0,90171.0,0.01109004]
[1765559101374,0.01108954,90175.0,90171.0,0.01109004]
[1765559101577,0.30378942,90176.0,90142.0,0.10235645]
[1765559101578,0.01836801,90174.0,90165.0,0.01270364]
[1765559101779,0.01836801,90175.0,90173.0,0.01108979]
[1765559101982,0.01836801,90175.0,90167.0,0.01109053]
[1765559101983,0.22173584,90198.0,90192.0,0.01108745]
[1765559102182,0.01108585,90205.0,90199.0,0.01108659]
[1765559102363,0.01108598,90204.0,90197.0,0.01108684]
[1765559102561,0.01764,90216.0,90200.0,0.01108647]
[1765559102562,0.22171442,90207.0,90200.0,0.01108647]
[1765559102787,0.01836801,90206.0,90204.0,0.22171921]
[1765559102993,0.01108315,90227.0,90221.0,0.01108389]
[1765559103188,0.01108266,90231.0,90228.0,0.01108303]
[1765559103394,0.01108254,90232.0,90227.0,0.01108315]
[1765559103597,0.02514294,90253.0,90235.0,0.01108217]
[1765559103820,0.01108229,90234.0,90228.0,0.02458334]
[1765559103993,0.01108205,90236.0,90230.0,0.01108278]
[1765559104213,0.01108254,90232.0,90227.0,0.00161287]
[1765559104559,0.01836801,90231.0,90230.0,0.22165576]
[1765559104730,0.01836801,90238.0,90235.0,0.01108217]
[1765559104908,0.01108143,90241.0,90236.0,0.01108205]
[1765559104909,0.01108156,90240.0,90236.0,0.01108205]
[1765559105115,0.01108168,90239.0,90235.0,0.01108217]
[1765559105290,0.01108241,90233.0,90226.0,0.23274831]
[1765559105495,0.01836801,90232.0,90229.0,0.01108291]
[1765559105690,0.01108192,90237.0,90223.0,0.22167113]
[1765559105691,0.01108266,90231.0,90223.0,0.01108364]
[1765559105953,0.51237542,90222.0,90221.0,0.00038824]
[1765559106153,0.55549735,90222.0,90221.0,0.00038824]
[1765559108098,0.60551574,90222.0,90221.0,0.00038824]
[1765559108468,0.60551574,90222.0,90221.0,0.00138824]
[1765559108746,0.60851574,90222.0,90221.0,0.00138824]
[1765559108916,0.60851574,90222.0,90221.0,0.00038824]
[1765559109114,0.60751574,90222.0,90221.0,0.00038824]
[1765559109520,0.60551574,90222.0,90221.0,0.00038824]
[1765559109935,0.60751574,90222.0,90221.0,0.00038824]
[1765559110158,0.01108684,90197.0,90192.0,0.01108745]
[1765559110463,0.01147399,90197.0,90192.0,0.01108745]
[1765559110666,0.01108745,90192.0,90189.0,0.01108782]
[1765559110860,0.01108831,90185.0,90181.0,0.00161287]
[1765559111072,0.01108868,90182.0,90177.0,0.23287534]
[1765559111259,0.04312193,90184.0,90181.0,0.01108881]
[1765559111441,0.01108844,90184.0,90181.0,0.01108881]
[1765559111621,0.01108893,90180.0,90175.0,0.01108954]
[1765559111822,0.2907,90186.0,90182.0,0.01108868]
[1765559112026,0.2907,90186.0,90183.0,0.01108856]
[1765559112253,0.2907,90186.0,90182.0,0.23286113]
[1765559112254,0.0110877,90190.0,90184.0,0.01108844]
[1765559112458,0.2907,90191.0,90184.0,0.01108844]